lending/lending_fUSD_20240710
["ID","MTS","AMOUNT","RATE_DAILY","PERIOD"]
[331690653,1720645846970,-1329.7458757,0.00014,2]
[331690654,1720645846984,-445.62000001,0.00014,2]
[331690655,1720645847018,-15792.30196992,0.00014,2]
[331690663,1720645861784,155.0,0.00010674,2]
[331690664,1720645891821,155.0,0.00010674,2]
[331690665,1720645914486,9081.8003913,0.00011199,2]
[331690666,1720645932380,3393.16408193,0.00011199,2]
[331690667,1720645961099,500.0,0.00027,120]
[331690668,1720645982117,1055.71054162,0.00011199,2]
[331690669,1720645996693,151.071106,0.00025,78]
[331690670,1720645996814,155.0,0.00011199,2]
[331690671,1720645997385,1391.33325677,0.00011199,2]
[331690672,1720646005137,9857.7437,0.00011913,2]
[331690673,1720646005969,151.071106,0.00025,77]
[331690674,1720646013682,151.071106,0.00025,73]
[331690675,1720646015048,151.071106,0.00025,73]
[331690676,1720646018545,151.071106,0.00025,72]
[331690677,1720646019287,151.071106,0.00025,72]
[331690678,1720646024037,151.071106,0.00025,71]
[331690679,1720646024950,151.071106,0.00025,71]
[331690680,1720646028889,151.071106,0.00025,70]
[331690681,1720646030898,151.071106,0.00025,70]
[331690683,1720646034690,595.86183141,0.00011199,2]
[331690684,1720646035676,151.071106,0.00025,66]
[331690685,1720646038824,527.41897284,0.00011199,2]
[331690686,1720646039252,151.071106,0.00025,65]
[331690688,1720646052374,530.49341065,0.00011199,2]
[331690689,1720646053140,191.071106,0.00025,64]
[331690691,1720646058939,328.82033738,0.00011199,2]
[331690692,1720646062828,412.23419476,0.00011199,2]
[331690693,1720646065343,155.11959105,0.00011199,2]
[331690694,1720646067021,309.92840343,0.00011199,2]
[331690695,1720646067613,209.99775219,0.00011199,2]
[331690696,1720646070629,411.48559901,0.00011199,2]
[331690697,1720646080359,179.80157341,0.00011199,2]
[331690698,1720646083303,166.59096438,0.00011199,2]
[331690700,1720646085921,170.17557286,0.00011199,2]
[331690701,1720646090021,379.089191,0.00011199,2]
[331690702,1720646090540,206.38193342,0.00011199,2]
[331690703,1720646092399,158.22134904,0.00011199,2]
[331690704,1720646093007,155.0,0.00011199,2]
[331690705,1720646095095,155.0,0.00011199,2]
[331690706,1720646096755,208.85960575,0.00011199,2]
[331690707,1720646103144,229.13265735,0.00011199,2]
[331690710,1720646128733,235.86876767,0.00011199,2]
[331690712,1720646167609,155.0,0.00011199,2]
[331690718,1720646283340,1883.02404874,0.00011199,2]
[331690720,1720646342993,360.18,0.00010848,2]
[331690721,1720646366076,179.58670077,0.00011199,2]
[331690739,1720646523098,308.2,0.00011199,2]
[331690741,1720646555336,626.30206607,0.00011199,2]
[331690743,1720646609821,491.51691083,0.00011199,2]
[331690744,1720646622559,205.87803392,0.00011199,2]
[331690746,1720646651829,288.05394468,0.00011199,2]
[331690768,1720646801583,155.58939673,0.00011199,2]
[331690775,1720646871369,604.55927664,0.00011199,2]
[331690777,1720646872860,2374.66560642,0.00011199,2]
[331690781,1720646903515,362.56,0.00010515,2]
[331690785,1720646918993,274.1161028,0.00011199,2]
[331690787,1720646928115,155.0,0.00011199,2]
[331690845,1720647033310,-178.07580168,0.00012273,2]
[331690846,1720647033321,-155.0,0.00012273,2]
[331690847,1720647033331,-542.08227106,0.00012315,2]
[331690848,1720647033343,-121.28762894,0.00012315,2]
[331690849,1720647033353,-434.97907583,0.00012389,2]
[331690850,1720647033368,-277.02092417,0.00012389,2]
[331690851,1720647033378,-500.0,0.00012415,2]
[331690852,1720647033387,-150.0,0.00012416,2]
[331690853,1720647033398,-104.60841732,0.00012416,2]
[331690854,1720647033410,-3150.39158268,0.00012416,2]
[331690855,1720647033420,-250.0,0.00012419,2]
[331690856,1720647033429,-183.24,0.00012432,2]
[331690857,1720647033439,-795.79,0.00012435,2]
[331690858,1720647033448,-250.0,0.00012572,2]
[331690859,1720647033458,-288.0,0.0001266,2]
[331690860,1720647033467,-706.32517912,0.00012678,2]
[331690861,1720647033480,-138.32172088,0.00012678,2]
[331690862,1720647033491,-251.72547912,0.00012778,2]
[331690863,1720647033502,-110.83452088,0.00012778,2]
[331690864,1720647033511,-499.99,0.00012789,2]
[331690865,1720647033520,-3759.09,0.00012829,2]
[331690866,1720647033531,-179.15,0.00012889,2]
[331690867,1720647033540,-150.0,0.00012892,2]
[331690868,1720647033549,-2004.93547912,0.00012893,2]
[331690869,1720647033560,-494.7863136,0.00012893,2]
[331690870,1720647033571,-268.07010932,0.00012893,2]
[331690871,1720647033583,-664.24809796,0.00012893,2]
[331690872,1720647033592,-619.08614526,0.00012893,2]
[331690874,1720647037983,-237.15,0.00012327,2]
[331690875,1720647037993,-120.855,0.00012893,2]
[331690876,1720647038016,-5758.666758,0.00012893,2]
[331690877,1720647038068,-800.38762151,0.00012893,2]
[331690878,1720647038080,-674.10473515,0.00012893,2]
[331690879,1720647038093,-1476.56974008,0.00012893,2]
[331690880,1720647038103,-4970.08654188,0.00012938,2]
[331690881,1720647038113,-4970.08654188,0.00012938,2]
[331690882,1720647038123,-1250.0,0.00013,2]
[331690883,1720647038134,-421.74,0.00013278,2]
[331690884,1720647038144,-718.38165803,0.00013516,2]
[331690885,1720647038154,-718.38165803,0.00013516,2]
[331690886,1720647038164,-1439.69738861,0.00013574,2]
[331690887,1720647038174,-1076.9923,0.00013695,2]
[331690888,1720647038185,-1190.99,0.00013699,5]
[331690889,1720647038195,-250.0,0.00013699,2]
[331690890,1720647038205,-200.0,0.00013699,2]
[331690891,1720647038215,-284.53,0.00013699,2]
[331690892,1720647038226,-5505.07580896,0.000138,2]
[331690893,1720647038240,-579.74349104,0.000138,2]
[331690894,1720647038250,-1620.1574,0.000138,2]
[331690895,1720647038260,-1237.0372,0.000138,2]
[331690896,1720647038270,-162.94938247,0.000138,2]
[331690897,1720647038281,-162.94938244,0.0001382,2]
[331690898,1720647038291,-162.94938244,0.0001384,2]
[331690899,1720647038302,-385.96925274,0.00013852,2]
[331690900,1720647038312,-13844.85775051,0.0001386,2]
[331690901,1720647038325,-2571.81628,0.0001386,2]
[331690902,1720647038337,-1875.75408615,0.0001386,2]
[331690903,1720647038356,-1642.6789177,0.0001386,2]
[331690904,1720647038368,-673.38953007,0.0001386,2]
[331690905,1720647038380,-383.65,0.0001386,2]
[331690906,1720647038392,-2961.27754369,0.0001386,2]
[331690907,1720647038446,-3378.6,0.0001386,2]
[331690955,1720647039961,-3255.0,0.0001386,2]
[331690956,1720647039976,-2245.85754375,0.0001386,2]
[331690957,1720647039986,-156.95745752,0.0001386,2]
[331690958,1720647039999,-5.99192492,0.0001386,2]
[331690959,1720647040009,-3000.0,0.0001388,2]
[331690960,1720647040019,-162.94938244,0.0001388,2]
[331690961,1720647040028,-4983.6037,0.000139,2]
[331690962,1720647040038,-7648.5818,0.000139,2]
[331690963,1720647040049,-2004.0866,0.000139,2]
[331690964,1720647040059,-9975.26860968,0.000139,2]
[331690965,1720647040070,-3650.30341244,0.000139,2]
[331690966,1720647040082,-3192.05443592,0.000139,2]
[331690967,1720647040094,-1777.7292,0.000139,2]
[331690968,1720647040106,-783.317292,0.000139,2]
[331690969,1720647040121,-24617.29664748,0.000139,2]
[331690970,1720647040132,-1201.23505853,0.000139,2]
[331690971,1720647040144,-993.28232923,0.000139,2]
[331690972,1720647040157,-581.62307989,0.000139,2]
[331690973,1720647040169,-17756.86832099,0.000139,2]
[331690974,1720647040233,-475.21517826,0.000139,2]
[331690975,1720647040352,-471.98,0.000139,2]
[331690976,1720647040365,-19832.11977958,0.000139,2]
[331690977,1720647040377,-1609.12646155,0.000139,2]
[331690978,1720647040390,-4832.22556236,0.000139,2]
[331691073,1720647043024,-576.2,0.000139,2]
[331691074,1720647043037,-504.46220104,0.000139,2]
[331691075,1720647043050,-297.95376087,0.000139,2]
[331691076,1720647043062,-293.30521316,0.000139,2]
[331691077,1720647043075,-680.3546727,0.000139,2]
[331691078,1720647043088,-764.825,0.000139,2]
[331691079,1720647043099,-2569.07438432,0.000139,2]
[331691080,1720647043109,-11682.6033,0.000139,2]
[331691081,1720647043119,-1048.3846,0.000139,2]
[331691082,1720647043129,-1547.98591501,0.000139,2]
[331691083,1720647043140,-161.3672115,0.000139,2]
[331691084,1720647043150,-500.0,0.000139,2]
[331691085,1720647043160,-175.48904366,0.000139,2]
[331691086,1720647043169,-167.07041142,0.000139,2]
[331691087,1720647043582,-8969.14058965,0.000139,2]
[331691088,1720647043602,-735.915,0.000139,2]
[331691089,1720647045464,-1722.518215,0.000139,2]
[331691090,1720647045474,-344.45426268,0.000139,2]
[331691091,1720647045485,-729.99570826,0.000139,2]
[331691092,1720647045495,-312.82557141,0.000139,2]
[331691093,1720647045506,-199.49669456,0.000139,2]
[331691094,1720647045515,-162.94938244,0.000139,2]
[331691095,1720647045528,-169.43406558,0.000139,2]
[331691096,1720647045541,-2833.13889606,0.000139,2]
[331691097,1720647045555,-794.19253862,0.000139,2]
[331691098,1720647045608,-1388.89874563,0.000139,2]
[331691099,1720647045619,-1315.99521667,0.000139,2]
[331691100,1720647045628,-712.0,0.00013937,2]
[331691101,1720647045637,-1896.54105522,0.0001396,2]
[331691102,1720647045650,-300.08603421,0.0001396,2]
[331691103,1720647045665,-783.75520737,0.0001396,2]
[331691104,1720647045678,-19.6177032,0.0001396,2]
[331691105,1720647045689,-167.97127449,0.0001399,2]
[331691106,1720647045698,-1258.98418951,0.00013997,2]
[331691107,1720647045717,-666.8,0.00013997,2]
[331691108,1720647045729,-4496.09581049,0.00013997,2]
[331691109,1720647045740,-500.0,0.00013997,2]
[331691110,1720647045749,-500.0,0.00013997,2]
[331691111,1720647045759,-500.0,0.00013997,2]
[331691112,1720647045767,-333.6758853,0.00013997,2]
[331691113,1720647045779,-166.3241147,0.00013997,2]
[331691114,1720647045787,-500.0,0.00013997,2]
[331691115,1720647045796,-500.0,0.00013997,2]
[331691116,1720647045806,-500.0,0.00013997,2]
[331691117,1720647045815,-500.0,0.00013997,2]
[331691118,1720647045824,-500.0,0.00013997,2]
[331691120,1720647045833,-120.30161847,0.00013997,2]
[331691122,1720647045844,-379.69838153,0.00013997,2]
[331691123,1720647045853,-500.0,0.00013997,2]
[331691125,1720647045865,-740.18183705,0.00013997,2]
[331691127,1720647045877,-1014.6249167,0.00013997,2]
[331691129,1720647045888,-1627.83317733,0.00013997,2]
[331691131,1720647045899,-1825.87943537,0.00013997,2]
[331691133,1720647045909,-500.0,0.00013998,2]
[331691135,1720647045918,-500.0,0.00013998,2]
[331691136,1720647045929,-500.0,0.00013998,2]
[331691138,1720647045938,-500.0,0.00013998,2]
[331691140,1720647045947,-500.0,0.00013998,2]
[331691142,1720647045956,-522.73,0.00013998,2]
[331691144,1720647045966,-500.0,0.00013998,2]
[331691145,1720647045975,-500.0,0.00013998,2]
[331691147,1720647045985,-500.0,0.00013998,2]
[331691149,1720647045994,-350.19318293,0.00013998,2]
[331691151,1720647046004,-500.0,0.00013998,2]
[331691152,1720647046013,-500.0,0.00013998,2]
[331691154,1720647046022,-500.0,0.00013998,2]
[331691156,1720647046039,-500.0,0.00013998,2]
[331691158,1720647046048,-500.0,0.00013998,2]
[331691160,1720647046057,-500.0,0.00013998,2]
[331691162,1720647046066,-500.0,0.00013998,2]
[331691163,1720647046075,-500.0,0.00013998,2]
[331691164,1720647046085,-52.1433467,0.00013998,2]
[331691165,1720647046096,-447.8566533,0.00013998,2]
[331691166,1720647046106,-237.64499941,0.00013998,2]
[331691167,1720647046118,-262.35500059,0.00013998,2]
[331691168,1720647046126,-500.0,0.00013998,2]
[331691169,1720647046136,-516.39,0.00013998,2]
[331691170,1720647046145,-500.0,0.00013998,2]
[331691171,1720647046154,-500.0,0.00013998,2]
[331691172,1720647046163,-500.0,0.00013998,2]
[331691173,1720647046172,-500.0,0.00013998,2]
[331691174,1720647046181,-500.0,0.00013998,2]
[331691175,1720647046191,-500.0,0.00013998,2]
[331691176,1720647046200,-500.0,0.00013998,2]
[331691177,1720647046211,-500.0,0.00013998,2]
[331691178,1720647046221,-500.0,0.00013998,2]
[331691179,1720647046232,-500.0,0.00013998,2]
[331691180,1720647046241,-500.0,0.00013998,2]
[331691181,1720647046251,-500.0,0.00013998,2]
[331691182,1720647046262,-500.0,0.00013998,2]
[331691183,1720647046271,-500.0,0.00013998,2]
[331691184,1720647046279,-500.0,0.00013998,2]
[331691185,1720647046288,-500.0,0.00013998,2]
[331691186,1720647046297,-500.0,0.00013998,2]
[331691187,1720647046306,-500.0,0.00013998,2]
[331691188,1720647046315,-346.66389534,0.00013998,2]
[331691189,1720647046326,-153.33610466,0.00013998,2]
[331691190,1720647046334,-500.0,0.00013998,2]
[331691191,1720647046343,-500.0,0.00013998,2]
[331691192,1720647046352,-500.0,0.00013998,2]
[331691193,1720647046361,-500.0,0.00013998,2]
[331691194,1720647046372,-500.0,0.00013998,2]
[331691195,1720647046381,-1367.96,0.00013998,2]
[331691196,1720647046392,-500.0,0.00013998,2]
[331691197,1720647046402,-500.0,0.00013998,2]
[331691198,1720647046411,-500.0,0.00013998,2]
[331691199,1720647046420,-500.0,0.00013998,2]
[331691200,1720647046430,-495.81181534,0.00013998,2]
[331691201,1720647046443,-105.51818466,0.00013998,2]
[331691202,1720647046452,-300.04825584,0.00013998,2]
[331691203,1720647046472,-245.06174416,0.00013998,2]
[331691204,1720647046485,-559.79,0.00013998,2]
[331691205,1720647046496,-500.0,0.00013998,2]
[331691206,1720647046507,-500.0,0.00013998,2]
[331691207,1720647046517,-500.0,0.00013998,2]
[331691208,1720647046526,-331.43884251,0.00013998,2]
[331691210,1720647046536,-500.0,0.00013998,2]
[331691211,1720647046545,-500.0,0.00013998,2]
[331691212,1720647046555,-500.0,0.00013998,2]
[331691213,1720647046564,-500.0,0.00013998,2]
[331691214,1720647046572,-500.0,0.00013998,2]
[331691215,1720647046582,-298.38000005,0.00013998,2]
[331691216,1720647046591,-500.0,0.00013998,2]
[331691217,1720647046600,-500.0,0.00013998,2]
[331691218,1720647046610,-500.0,0.00013998,2]
[331691219,1720647046619,-500.0,0.00013998,2]
[331691220,1720647046629,-500.0,0.00013998,2]
[331691221,1720647046639,-500.0,0.00013998,2]
[331691222,1720647046650,-550.41,0.00013998,2]
[331691223,1720647046659,-500.0,0.00013998,2]
[331691224,1720647046668,-500.0,0.00013998,2]
[331691225,1720647046677,-897.21,0.00013998,2]
[331691226,1720647046687,-500.0,0.00013998,2]
[331691227,1720647046696,-500.0,0.00013999,2]
[331691228,1720647046706,-500.0,0.00013999,2]
[331691229,1720647046715,-500.0,0.00013999,2]
[331691230,1720647046725,-500.0,0.00013999,2]
[331691231,1720647046735,-500.0,0.00013999,2]
[331691232,1720647046744,-500.0,0.00013999,2]
[331691233,1720647046754,-500.0,0.00013999,2]
[331691234,1720647046764,-500.0,0.00013999,2]
[331691235,1720647046773,-500.0,0.00013999,2]
[331691236,1720647046782,-500.0,0.00013999,2]
[331691237,1720647046793,-500.0,0.00013999,2]
[331691238,1720647046803,-483.04343119,0.00013999,2]
[331691239,1720647046815,-16.95656881,0.00013999,2]
[331691240,1720647046824,-500.0,0.00013999,2]
[331691241,1720647046834,-500.0,0.00013999,2]
[331691242,1720647046843,-500.0,0.00013999,2]
[331691243,1720647046852,-500.0,0.00013999,2]
[331691244,1720647046861,-500.0,0.00013999,2]
[331691245,1720647046871,-500.0,0.00013999,2]
[331691246,1720647046881,-500.0,0.00013999,2]
[331691247,1720647046890,-500.0,0.00013999,2]
[331691248,1720647046900,-634.93,0.00013999,2]
[331691249,1720647046909,-500.0,0.00013999,2]
[331691250,1720647046918,-534.68112579,0.00013999,2]
[331691251,1720647046927,-500.0,0.00013999,2]
[331691252,1720647046937,-500.0,0.00013999,2]
[331691253,1720647046946,-453.4323054,0.00013999,2]
[331691254,1720647046958,-58.0376946,0.00013999,2]
[331691255,1720647046967,-500.0,0.00013999,2]
[331691256,1720647046977,-500.0,0.00013999,2]
[331691257,1720647046986,-252.85886469,0.00013999,2]
[331691258,1720647046998,-247.14113531,0.00013999,2]
[331691259,1720647047007,-54.85886469,0.00013999,2]
[331691260,1720647047018,-445.14113531,0.00013999,2]
[331691261,1720647047028,-500.0,0.00013999,2]
[331691262,1720647047037,-70.95886469,0.00013999,2]
[331691263,1720647047353,-449.0,0.0001399,2]
[331691264,1720647047363,-429.04113531,0.00013999,2]
[331691265,1720647047372,-500.0,0.00013999,2]
[331691266,1720647047382,-500.0,0.00013999,2]
[331691267,1720647047391,-577.98,0.00013999,2]
[331691268,1720647047400,-500.0,0.00013999,2]
[331691269,1720647047409,-500.0,0.00013999,2]
[331691270,1720647047419,-500.0,0.00013999,2]
[331691271,1720647047428,-500.0,0.00013999,2]
[331691272,1720647047438,-500.0,0.00013999,2]
[331691273,1720647047447,-500.0,0.00013999,2]
[331691274,1720647047456,-539.08,0.00013999,2]
[331691275,1720647047465,-585.00739449,0.00013999,2]
[331691276,1720647047475,-474.11868315,0.00013999,2]
[331691277,1720647047485,-131541.32155545,0.00014,2]
[331691278,1720647047516,-500.0,0.00013997,2]
[331691279,1720647047526,-1885.59680762,0.00014,2]
[331691280,1720647047537,-5782.29589336,0.00014,2]
[331691281,1720647047547,-797.12424849,0.00014,2]
[331691282,1720647047558,-1344.97691083,0.00014,2]
[331691283,1720647050047,275995.276103,9.781e-05,7]
[331691284,1720647245118,237.20245709,0.000118,2]
[331691285,1720647273535,2374.07923418,0.00011199,2]
[331691286,1720647313200,1271.86854711,0.00011199,2]
[331691287,1720647336093,691.39258834,0.00011199,2]
[331691288,1720647336221,1052.65095936,0.00011199,2]
[331691290,1720647350973,1135.89325909,0.00011199,2]
[331691291,1720647356880,1070.42703277,0.00011199,2]
[331691292,1720647362237,805.42887238,0.00011199,2]
[331691293,1720647369383,1082.44353776,0.00011199,2]
[331691294,1720647386398,647.42838071,0.00011199,2]
[331691297,1720647425925,518.69562264,0.00011199,2]
[331691298,1720647434167,475.9304479,0.00011199,2]
[331691299,1720647437524,494.29620933,0.00011199,2]
[331691300,1720647450870,346.7,0.00010755,2]
[331691301,1720647454096,190.85340652,0.00011199,2]
[331691302,1720647455623,431.26485321,0.00011199,2]
[331691304,1720647485165,202.68124914,0.00011199,2]
[331691306,1720647496830,286.90913679,0.00011199,2]
[331691307,1720647529814,612.39485339,0.00011199,2]
[331691309,1720647682703,155.27756035,0.00011199,2]
[331691310,1720647685559,1748.42762844,0.00011199,2]
[331691311,1720647745066,151.071106,0.00025,63]
[331691312,1720647748301,151.071106,0.00025,64]
[331691313,1720647751331,151.071106,0.00025,65]
[331691314,1720647754708,151.071106,0.00025,66]
[331691315,1720647760403,151.071106,0.00025,70]
[331691316,1720647763466,151.071106,0.00025,71]
[331691317,1720647766342,151.071106,0.00025,72]
[331691318,1720647771966,151.071106,0.00025,73]
[331691319,1720647887495,3200.00035464,0.00018,30]
[331691320,1720647891016,500.0,0.00027,120]
[331691321,1720647906647,474.99946032,0.00011199,2]
[331691322,1720647934254,1975.45499067,0.00011199,2]
[331691323,1720647937254,520.7022797,0.00011199,2]
[331691324,1720647949979,1884.27285191,0.00011199,2]
[331691325,1720647958002,304.56363354,0.00011199,2]
[331691326,1720647964571,5982.71269753,0.00011199,2]
[331691327,1720647998804,677.85878921,0.00011199,2]
[331691328,1720648018709,500.0,0.00025,60]
[331691329,1720648037979,200.0,0.00027,120]
[331691330,1720648068501,163.9372218,0.00011199,2]
[331691331,1720648078222,300.0,0.00018,30]
[331691332,1720648078709,155.0,0.00011199,2]
[331691333,1720648128738,13799.81392056,0.00011199,2]
[331691334,1720648132619,411.97119588,0.00011199,2]
[331691335,1720648135074,290.63547347,0.00011199,2]
[331691362,1720648155065,181.23195314,0.00011199,2]
[331691364,1720648187288,370.83,0.00010611,2]
[331691380,1720648233408,-2561.5843,0.00012173,2]
[331691381,1720648233419,-168.47,0.00012435,2]
[331691382,1720648233428,-354.72,0.00012435,2]
[331691383,1720648233438,-1721.57,0.00012435,2]
[331691384,1720648233449,-500.0,0.00012435,2]
[331691385,1720648233459,-250.0,0.00012435,2]
[331691386,1720648233470,-427.2,0.0001249,2]
[331691387,1720648233480,-213.18,0.00012521,2]
[331691388,1720648233489,-150.0,0.0001254,2]
[331691389,1720648233499,-2514.2757,0.00012541,2]
[331691390,1720648233515,-351.96,0.00012541,2]
[331691391,1720648233527,-21033.7643,0.00012541,2]
[331691392,1720648233536,-200.0,0.00012553,2]
[331691393,1720648233545,-150.0,0.00012553,2]
[331691394,1720648233555,-179.15,0.00012559,2]
[331691395,1720648233565,-250.0,0.00012597,2]
[331691396,1720648233575,-499.99,0.00012597,2]
[331691397,1720648233585,-4388.55,0.00012612,2]
[331691398,1720648233594,-299.99,0.00012612,2]
[331691399,1720648233604,-1292.91,0.00012672,2]
[331691400,1720648233614,-7258.03123146,0.00012672,2]
[331691401,1720648233625,-396.51876854,0.00012672,2]
[331691402,1720648233654,-2345.44,0.00012672,2]
[331691403,1720648233664,-572.8,0.00012741,2]
[331691404,1720648233673,-644.62,0.0001277,2]
[331691405,1720648233683,-6064.18,0.0001277,2]
[331691406,1720648233692,-183.38,0.0001282,2]
[331691407,1720648233702,-370.83,0.00012875,2]
[331691408,1720648233711,-600.0,0.00013,4]
[331691409,1720648233721,-1300.0,0.000131,4]
[331691410,1720648233731,-1900.0,0.000132,4]
[331691411,1720648233740,-2600.0,0.000133,4]
[331691412,1720648233750,-3300.0,0.000134,4]
[331691413,1720648233759,-268.43690052,0.00013472,2]
[331691414,1720648233769,-600.0,0.000135,4]
[331691415,1720648233779,-163.9372218,0.00013543,2]
[331691416,1720648233788,-156.04927212,0.00013543,2]
[331691417,1720648233798,-155.0,0.00013543,2]
[331691418,1720648233807,-411.48414082,0.00013574,2]
[331691419,1720648233817,-14179.95786123,0.00013574,2]
[331691420,1720648233826,-14179.95786123,0.00013574,2]
[331691421,1720648233836,-5536.458,0.000136,2]
[331691422,1720648233846,-600.0,0.000136,4]
[331691424,1720648233856,-255.0,0.00013631,2]
[331691426,1720648233865,-250.0,0.00013699,2]
[331691428,1720648233875,-286.16,0.00013699,2]
[331691429,1720648233884,-600.0,0.000137,5]
[331691430,1720648233893,-382.01569831,0.00013747,2]
[331691432,1720648233902,-600.0,0.000138,5]
[331691434,1720648233911,-2794.2691,0.0001386,2]
[331691436,1720648233921,-317.35168101,0.00013862,2]
[331691438,1720648233930,-220.15,0.0001389,3]
[331691440,1720648233939,-500.0,0.000139,2]
[331691442,1720648233950,-2500.0,0.000139,2]
[331691444,1720648233960,-500.0,0.000139,2]
[331691446,1720648233970,-186.28302763,0.000139,2]
[331691448,1720648233979,-1135.0,0.000139,5]
[331691450,1720648233989,-983.97468559,0.000139,2]
[331691452,1720648233998,-199.49669455,0.000139,2]
[331691454,1720648234007,-312.82557141,0.000139,2]
[331691455,1720648234017,-6000.0,0.00013987,3]
[331691456,1720648234026,-500.0,0.00013997,2]
[331691457,1720648234036,-250.35,0.00013997,2]
[331691458,1720648234045,-180.55,0.00013997,2]
[331691459,1720648234055,-500.0,0.00013997,2]
[331691460,1720648234064,-420.41701893,0.00013997,2]
[331691461,1720648234073,-500.0,0.00013997,2]
[331691462,1720648234085,-832.75211407,0.00013999,5]
[331691463,1720648234095,-500.0,0.00013999,2]
[331691464,1720648234105,-500.0,0.00013999,2]
[331691465,1720648234116,-500.0,0.00013999,2]
[331691466,1720648234126,-500.0,0.00013999,2]
[331691467,1720648234136,-500.0,0.00013999,2]
[331691468,1720648234145,-2927.64,0.00013999,2]
[331691469,1720648234154,-500.0,0.00013999,2]
[331691470,1720648234164,-500.0,0.00013999,2]
[331691471,1720648234174,-500.0,0.00013999,2]
[331691472,1720648234183,-500.0,0.00013999,2]
[331691473,1720648234193,-500.0,0.00013999,2]
[331691474,1720648234202,-6154.3,0.00013999,2]
[331691475,1720648234211,-627.21,0.00013999,2]
[331691476,1720648234221,-500.0,0.00013999,2]
[331691477,1720648234231,-859.82,0.00013999,2]
[331691478,1720648234240,-358251.53556213,0.00014,2]
[331691490,1720648238211,-486.6638055,0.000139,2]
[331691492,1720648238221,-2546.54137132,0.00013999,2]
[331691495,1720648238319,-259.11862868,0.00013999,2]
[331691496,1720648238329,-42087.96562732,0.00014,2]
[331691663,1720648240472,-1273.44680724,0.00014,2]
[331691676,1720648240579,-226.74750375,0.000139,2]
[331691678,1720648240588,-150164.96018841,0.00014,2]
[331691680,1720648240599,-9072.06453866,0.00014,2]
[331691683,1720648240610,-5277.91856876,0.00014,2]
[331691700,1720648240756,-2429.04615873,0.00014,2]
[331691702,1720648240767,-900.53665425,0.00014,2]
[331691704,1720648240776,-73397.75111326,0.00014,2]
[331691861,1720648243372,-707.3898016,0.00014,2]
[331691902,1720648245218,-6965.91890325,0.00014,2]
[331691903,1720648245230,-951121.80984013,0.00014,2]
[331691904,1720648245243,-2295.6112263,0.00014,2]
[331691905,1720648245263,-432.0,0.00014,2]
[331691906,1720648245276,-1365.24271863,0.00014,2]
[331691907,1720648245292,-310.0,0.00014,2]
[331691908,1720648245304,-3491.09720002,0.00014,2]
[331691909,1720648245323,-2385.14,0.00014,2]
[331691910,1720648245335,-335.55999996,0.00014,2]
[331691911,1720648245347,-2421.6,0.00014,2]
[331692095,1720648250384,-2579.27950171,0.00014,2]
[331692096,1720648250396,-6775.25425023,0.00014,2]
[331692097,1720648250406,-70780.45403029,0.00014,2]
[331692098,1720648250419,-777.38,0.00014,2]
[331692099,1720648250430,-20000.0,0.00014,2]
[331692100,1720648250442,-939.883994,0.00014,2]
[331692101,1720648250457,-1104.77410387,0.00014,2]
[331692102,1720648250477,-1060101.13728995,0.00014,2]
[331692103,1720648250488,-922.42628103,0.00014,2]